[Event "Late-Titled-Tuesday-Blitz-March-05-2024"]
[Site "Chess.com"]
[Date "2024.03.05"]
[Round "1"]
[White "prochn"]
[Black "GaiozNigalidze"]
[Result "1-0"]
[WhiteElo "2483"]
[BlackElo "2679"]
[TimeControl "180+1"]
[EndTime "14:08:48 PST"]
[Termination "prochn won on time"]

1. d4 {[%clk 0:03:00.9]} 1... g6 {[%clk 0:02:59.4]} 2. c4 {[%clk 0:03:00.2]}
2... Bg7 {[%clk 0:02:59.7]} 3. g3 {[%clk 0:03:00.7]} 3... a6 {[%clk 0:02:58.5]}
4. Bg2 {[%clk 0:03:00.2]} 4... d6 {[%clk 0:02:58.6]} 5. Nf3 {[%clk 0:02:59.4]}
5... Nd7 {[%clk 0:02:58.5]} 6. O-O {[%clk 0:02:59.3]} 6... e5 {[%clk 0:02:58.2]}
7. d5 {[%clk 0:02:39.3]} 7... Ne7 {[%clk 0:02:54.9]} 8. Nc3 {[%clk 0:02:38.5]}
8... O-O {[%clk 0:02:54.3]} 9. Rb1 {[%clk 0:02:37]} 9... a5 {[%clk 0:02:54.1]}
10. a3 {[%clk 0:02:36.4]} 10... h6 {[%clk 0:02:54.3]} 11. b4 {[%clk 0:02:34.1]}
11... f5 {[%clk 0:02:53.8]} 12. e4 {[%clk 0:02:31.7]} 12... Nf6 {[%clk
0:02:53.2]} 13. Qc2 {[%clk 0:02:14.9]} 13... g5 {[%clk 0:02:50.9]} 14. c5 {[%clk
0:01:48.5]} 14... axb4 {[%clk 0:02:48.9]} 15. axb4 {[%clk 0:01:48.4]} 15... f4
{[%clk 0:02:26.6]} 16. cxd6 {[%clk 0:01:34.9]} 16... cxd6 {[%clk 0:02:24.7]} 17.
Ne1 {[%clk 0:01:32.5]} 17... Bd7 {[%clk 0:02:19.5]} 18. b5 {[%clk 0:01:28.6]}
18... Qb6 {[%clk 0:02:14.8]} 19. Qb3 {[%clk 0:01:20.8]} 19... Ng6 {[%clk
0:01:59.1]} 20. Nd3 {[%clk 0:01:11.5]} 20... h5 {[%clk 0:01:51.3]} 21. Bd2
{[%clk 0:00:57.6]} 21... h4 {[%clk 0:01:39.1]} 22. Na4 {[%clk 0:00:40]} 22...
Qd4 {[%clk 0:01:38.1]} 23. Ra1 {[%clk 0:00:10.5]} 23... fxg3 {[%clk 0:01:32]}
24. Be3 {[%clk 0:00:09.6]} 24... Qxa1 {[%clk 0:00:42.9]} 25. Rxa1 {[%clk
0:00:09]} 25... h3 {[%clk 0:00:43.3]} 26. Bf3 {[%clk 0:00:06.6]} 26... g4 {[%clk
0:00:43.1]} 27. Be2 {[%clk 0:00:06]} 27... gxh2+ {[%clk 0:00:37.4]} 28. Kxh2
{[%clk 0:00:04.4]} 28... Nxe4 {[%clk 0:00:37.6]} 29. Rc1 {[%clk 0:00:03]} 29...
Rf7 {[%clk 0:00:25]} 30. Nb6 {[%clk 0:00:03.3]} 30... Raf8 {[%clk 0:00:22.3]}
31. Nxd7 {[%clk 0:00:03.7]} 31... Rxd7 {[%clk 0:00:22.1]} 32. Qc4 {[%clk
0:00:03.4]} 32... Nf6 {[%clk 0:00:19.4]} 33. Bxg4 {[%clk 0:00:03]} 33... Nxg4+
{[%clk 0:00:17.8]} 34. Qxg4 {[%clk 0:00:03.9]} 34... Rdf7 {[%clk 0:00:16.7]} 35.
Rg1 {[%clk 0:00:04.5]} 35... Rf6 {[%clk 0:00:16.4]} 36. Bg5 {[%clk 0:00:03.4]}
36... Rf5 {[%clk 0:00:16]} 37. Be7 {[%clk 0:00:03.3]} 37... R8f7 {[%clk
0:00:12.3]} 38. Qxg6 {[%clk 0:00:03]} 38... e4 {[%clk 0:00:12.4]} 39. Bd8 {[%clk
0:00:02.9]} 39... exd3 {[%clk 0:00:12]} 40. Kxh3 {[%clk 0:00:03.1]} 40... d2
{[%clk 0:00:11.4]} 41. Bg5 {[%clk 0:00:02.1]} 41... Rxf2 {[%clk 0:00:10.6]} 42.
Bxd2 {[%clk 0:00:02.2]} 42... Rxd2 {[%clk 0:00:09.6]} 43. Qxd6 {[%clk
0:00:02.4]} 43... Rdf2 {[%clk 0:00:08.1]} 44. Qe6 {[%clk 0:00:02.6]} 44... Rf3+
{[%clk 0:00:07.6]} 45. Rg3 {[%clk 0:00:02.9]} 45... Rf6 {[%clk 0:00:07.5]} 46.
Qe8+ {[%clk 0:00:02.6]} 46... Rf8 {[%clk 0:00:07.7]} 47. Qe7 {[%clk 0:00:03.1]}
47... R8f7 {[%clk 0:00:07.9]} 48. Qe8+ {[%clk 0:00:03.4]} 48... Rf8 {[%clk
0:00:08]} 49. Qe4 {[%clk 0:00:03.2]} 49... R8f7 {[%clk 0:00:07.7]} 50. Qg4
{[%clk 0:00:03.5]} 50... Rh6+ {[%clk 0:00:07.3]} 51. Kg2 {[%clk 0:00:03.4]}
51... Rhf6 {[%clk 0:00:07.5]} 52. Qg5 {[%clk 0:00:03.8]} 52... Kf8 {[%clk
0:00:06.5]} 53. Qe3 {[%clk 0:00:03]} 53... Bh6 {[%clk 0:00:04.9]} 54. Qc5+
{[%clk 0:00:03]} 54... Re7 {[%clk 0:00:05.2]} 55. Qc8+ {[%clk 0:00:03.1]} 55...
Re8 {[%clk 0:00:04.7]} 56. Qd7 {[%clk 0:00:03.4]} 56... Re7 {[%clk 0:00:03.7]}
57. Qc8+ {[%clk 0:00:03.5]} 57... Re8 {[%clk 0:00:03.9]} 58. Qxb7 {[%clk
0:00:03.8]} 58... Rf7 {[%clk 0:00:03.6]} 59. Qc6 {[%clk 0:00:04]} 59... Bg7
{[%clk 0:00:03.5]} 60. d6 {[%clk 0:00:04.4]} 60... Rf6 {[%clk 0:00:03]} 61. Rf3
{[%clk 0:00:04.6]} 61... Rxf3 {[%clk 0:00:02.5]} 62. Kxf3 {[%clk 0:00:05.5]}
62... Bf6 {[%clk 0:00:02.9]} 63. b6 {[%clk 0:00:05.9]} 63... Rd8 {[%clk
0:00:03.2]} 64. b7 {[%clk 0:00:06.2]} 64... Kf7 {[%clk 0:00:03.6]} 65. Qc7+
{[%clk 0:00:06.6]} 65... Ke6 {[%clk 0:00:03]} 66. Qxd8 {[%clk 0:00:06.8]} 66...
Bxd8 {[%clk 0:00:02.9]} 67. b8=Q {[%clk 0:00:07.7]} 1-0

[Event "Late-Titled-Tuesday-Blitz-March-05-2024"]
[Site "Chess.com"]
[Date "2024.03.05"]
[Round "1"]
[White "Jesseinkman"]
[Black "js20000"]
[Result "1/2-1/2"]
[WhiteElo "2471"]
[BlackElo "2785"]
[TimeControl "180+1"]
[EndTime "14:09:02 PST"]
[Termination "Game drawn by stalemate"]

1. e4 {[%clk 0:03:00.9]} 1... c6 {[%clk 0:02:56.8]} 2. d4 {[%clk 0:03:00.9]}
2... d5 {[%clk 0:02:57.7]} 3. exd5 {[%clk 0:03:01.8]} 3... cxd5 {[%clk
0:02:57.8]} 4. Bd3 {[%clk 0:03:02.7]} 4... Nc6 {[%clk 0:02:57.5]} 5. c3 {[%clk
0:03:03.3]} 5... Nf6 {[%clk 0:02:57.5]} 6. Bf4 {[%clk 0:03:03.5]} 6... Bg4
{[%clk 0:02:56.6]} 7. Qb3 {[%clk 0:03:04]} 7... e5 {[%clk 0:02:56.2]} 8. dxe5
{[%clk 0:02:55.5]} 8... Nh5 {[%clk 0:02:55.6]} 9. Be3 {[%clk 0:02:31.9]} 9...
Nxe5 {[%clk 0:02:51.5]} 10. Bb5+ {[%clk 0:02:23.4]} 10... Nc6 {[%clk 0:02:50]}
11. Qa4 {[%clk 0:02:06.1]} 11... Bd7 {[%clk 0:02:46.4]} 12. Nf3 {[%clk
0:02:01.9]} 12... Bd6 {[%clk 0:02:45.4]} 13. Nd4 {[%clk 0:01:51.5]} 13... a6
{[%clk 0:02:30.4]} 14. Nxc6 {[%clk 0:01:23.3]} 14... axb5 {[%clk 0:02:26.9]} 15.
Nxd8 {[%clk 0:01:22.3]} 15... bxa4 {[%clk 0:02:26.2]} 16. Nxb7 {[%clk
0:01:22.5]} 16... Be7 {[%clk 0:02:26.6]} 17. Nc5 {[%clk 0:01:22.3]} 17... Bb5
{[%clk 0:02:25.8]} 18. Na3 {[%clk 0:01:19.4]} 18... Bc6 {[%clk 0:02:23.6]} 19.
O-O {[%clk 0:01:11.2]} 19... O-O {[%clk 0:02:23.3]} 20. Nc2 {[%clk 0:01:11.3]}
20... Nf6 {[%clk 0:02:14.2]} 21. Nb4 {[%clk 0:01:09]} 21... Bb5 {[%clk
0:02:13.9]} 22. Rfd1 {[%clk 0:01:07.2]} 22... Rfc8 {[%clk 0:02:10.5]} 23. Ncd3
{[%clk 0:00:59.9]} 23... a3 {[%clk 0:02:10.8]} 24. bxa3 {[%clk 0:00:45.2]} 24...
Rxc3 {[%clk 0:02:09.7]} 25. Nf4 {[%clk 0:00:34]} 25... Rcxa3 {[%clk 0:01:03.5]}
26. Nbxd5 {[%clk 0:00:30.1]} 26... Bd8 {[%clk 0:01:00]} 27. Nxf6+ {[%clk
0:00:14.1]} 27... Bxf6 {[%clk 0:01:00.9]} 28. Bd4 {[%clk 0:00:14.4]} 28... Bg5
{[%clk 0:00:56.1]} 29. Be3 {[%clk 0:00:10.9]} 29... h6 {[%clk 0:00:53.2]} 30.
Nd5 {[%clk 0:00:10.6]} 30... Bd8 {[%clk 0:00:40.6]} 31. Bc5 {[%clk 0:00:10.9]}
31... Rxa2 {[%clk 0:00:33.3]} 32. Rxa2 {[%clk 0:00:11.8]} 32... Rxa2 {[%clk
0:00:32.9]} 33. Nc3 {[%clk 0:00:11]} 33... Rc2 {[%clk 0:00:25.6]} 34. Rxd8+
{[%clk 0:00:06]} 34... Kh7 {[%clk 0:00:26.2]} 35. Be3 {[%clk 0:00:03]} 35...
Rxc3 {[%clk 0:00:26]} 36. Rd1 {[%clk 0:00:03.3]} 36... g5 {[%clk 0:00:23.6]} 37.
Rc1 {[%clk 0:00:03.9]} 37... Rb3 {[%clk 0:00:23.4]} 38. h3 {[%clk 0:00:04.5]}
38... Kg6 {[%clk 0:00:23.2]} 39. Rc5 {[%clk 0:00:04.5]} 39... f5 {[%clk
0:00:23.2]} 40. Bd4 {[%clk 0:00:03.3]} 40... f4 {[%clk 0:00:21.2]} 41. Re5
{[%clk 0:00:03.6]} 41... Bc4 {[%clk 0:00:19.3]} 42. Rc5 {[%clk 0:00:03.6]} 42...
Bb5 {[%clk 0:00:17.6]} 43. Re5 {[%clk 0:00:03.7]} 43... Bd7 {[%clk 0:00:17.8]}
44. Rd5 {[%clk 0:00:03.7]} 44... Be6 {[%clk 0:00:18.2]} 45. Rd6 {[%clk
0:00:04.1]} 45... Kf5 {[%clk 0:00:18.5]} 46. Bg7 {[%clk 0:00:04.5]} 46... Rb1+
{[%clk 0:00:18.6]} 47. Kh2 {[%clk 0:00:04.3]} 47... h5 {[%clk 0:00:19.4]} 48. f3
{[%clk 0:00:04.9]} 48... Rc1 {[%clk 0:00:16.9]} 49. Rb6 {[%clk 0:00:04.7]} 49...
Rc2 {[%clk 0:00:17]} 50. Rb5+ {[%clk 0:00:04.7]} 50... Kg6 {[%clk 0:00:17.4]}
51. Bf8 {[%clk 0:00:04.1]} 51... Bc4 {[%clk 0:00:17.7]} 52. Rc5 {[%clk
0:00:04.2]} 52... Kf6 {[%clk 0:00:15.1]} 53. Bd6 {[%clk 0:00:03.5]} 53... Ke6
{[%clk 0:00:14.7]} 54. Bc7 {[%clk 0:00:03.1]} 54... Kd7 {[%clk 0:00:13.1]} 55.
Bb8 {[%clk 0:00:02.8]} 55... Ke6 {[%clk 0:00:12.5]} 56. Bc7 {[%clk 0:00:03.2]}
56... Kf6 {[%clk 0:00:12.3]} 57. Bd8+ {[%clk 0:00:03.4]} 57... Ke6 {[%clk
0:00:12.3]} 58. Bxg5 {[%clk 0:00:04]} 58... Kd6 {[%clk 0:00:12.6]} 59. Rc8
{[%clk 0:00:03.7]} 59... Kd7 {[%clk 0:00:12.9]} 60. Rc5 {[%clk 0:00:03.9]} 60...
Kd6 {[%clk 0:00:13.4]} 61. Rc8 {[%clk 0:00:04.3]} 61... Ke5 {[%clk 0:00:13]} 62.
Rc5+ {[%clk 0:00:04.7]} 62... Kd4 {[%clk 0:00:12.9]} 63. Rc8 {[%clk 0:00:04.9]}
63... Ra2 {[%clk 0:00:13.2]} 64. Bxf4 {[%clk 0:00:05]} 64... Bd5 {[%clk
0:00:13.5]} 65. Rd8 {[%clk 0:00:05.1]} 65... Kc4 {[%clk 0:00:13.3]} 66. Rc8+
{[%clk 0:00:05.3]} 66... Kd3 {[%clk 0:00:13.9]} 67. Rd8 {[%clk 0:00:05.9]} 67...
Kc4 {[%clk 0:00:14.5]} 68. Rc8+ {[%clk 0:00:06.4]} 68... Kd3 {[%clk 0:00:14.3]}
69. Re8 {[%clk 0:00:06.9]} 69... Kd4 {[%clk 0:00:13.3]} 70. Re1 {[%clk
0:00:06.8]} 70... Bxf3 {[%clk 0:00:12.8]} 71. Be5+ {[%clk 0:00:06]} 71... Kd5
{[%clk 0:00:12.9]} 72. Re3 {[%clk 0:00:01.6]} 72... Rxg2+ {[%clk 0:00:11.8]} 73.
Kh1 {[%clk 0:00:01.9]} 73... Rg3+ {[%clk 0:00:06.6]} 74. Kh2 {[%clk 0:00:01.9]}
74... Rg2+ {[%clk 0:00:07]} 75. Kh1 {[%clk 0:00:02.4]} 75... Be4 {[%clk
0:00:04.2]} 76. Rxe4 {[%clk 0:00:02.2]} 76... Kxe4 {[%clk 0:00:05.1]} 77. Kxg2
{[%clk 0:00:02.2]} 77... Kxe5 {[%clk 0:00:05.7]} 78. Kg3 {[%clk 0:00:03.1]}
78... Kf5 {[%clk 0:00:06.3]} 79. h4 {[%clk 0:00:04]} 79... Kg6 {[%clk
0:00:06.7]} 80. Kh3 {[%clk 0:00:04.9]} 80... Kf5 {[%clk 0:00:07.1]} 81. Kh2
{[%clk 0:00:05.8]} 81... Ke4 {[%clk 0:00:08]} 82. Kg2 {[%clk 0:00:06.7]} 82...
Kf4 {[%clk 0:00:08.6]} 83. Kg1 {[%clk 0:00:07.6]} 83... Kg4 {[%clk 0:00:09.5]}
84. Kh1 {[%clk 0:00:08.5]} 84... Kxh4 {[%clk 0:00:10.4]} 85. Kg1 {[%clk
0:00:09.4]} 85... Kg3 {[%clk 0:00:11.2]} 86. Kh1 {[%clk 0:00:10.3]} 86... h4
{[%clk 0:00:12.1]} 87. Kg1 {[%clk 0:00:11.2]} 87... h3 {[%clk 0:00:13]} 88. Kh1
{[%clk 0:00:12.1]} 88... h2 {[%clk 0:00:13.9]} 1/2-1/2

[Event "Late-Titled-Tuesday-Blitz-March-05-2024"]
[Site "Chess.com"]
[Date "2024.03.05"]
[Round "1"]
[White "GMBenjaminBok"]
[Black "AjedrezenMadrid"]
[Result "1/2-1/2"]
[WhiteElo "2972"]
[BlackElo "2526"]
[TimeControl "180+1"]
[EndTime "14:09:18 PST"]
[Termination "Game drawn by repetition"]

1. d4 {[%clk 0:03:00.9]} 1... Nf6 {[%clk 0:02:59]} 2. c4 {[%clk 0:02:59.7]} 2...
e6 {[%clk 0:02:58.9]} 3. Nc3 {[%clk 0:02:59.3]} 3... Bb4 {[%clk 0:02:57.7]} 4.
Qc2 {[%clk 0:02:58.3]} 4... c5 {[%clk 0:02:52.7]} 5. dxc5 {[%clk 0:02:57]} 5...
O-O {[%clk 0:02:50.1]} 6. a3 {[%clk 0:02:56.3]} 6... Bxc5 {[%clk 0:02:49.5]} 7.
Nf3 {[%clk 0:02:56.4]} 7... b6 {[%clk 0:02:48.3]} 8. Bf4 {[%clk 0:02:54.7]} 8...
Bb7 {[%clk 0:02:47.5]} 9. Rd1 {[%clk 0:02:54.8]} 9... Nh5 {[%clk 0:02:30.6]} 10.
Bc1 {[%clk 0:02:52.3]} 10... Nf6 {[%clk 0:02:29.6]} 11. e3 {[%clk 0:02:44.1]}
11... a6 {[%clk 0:02:28.5]} 12. Bd3 {[%clk 0:02:21.2]} 12... Qc7 {[%clk
0:02:25.6]} 13. b4 {[%clk 0:02:14.8]} 13... Be7 {[%clk 0:02:18.1]} 14. Bb2
{[%clk 0:02:14.9]} 14... d6 {[%clk 0:02:07.4]} 15. O-O {[%clk 0:01:33.6]} 15...
Nbd7 {[%clk 0:02:07.4]} 16. Ng5 {[%clk 0:01:29.4]} 16... h6 {[%clk 0:02:07.1]}
17. Nge4 {[%clk 0:01:28.5]} 17... Rac8 {[%clk 0:02:07.1]} 18. Nxf6+ {[%clk
0:01:06.6]} 18... Nxf6 {[%clk 0:02:06.6]} 19. Rd2 {[%clk 0:01:01.5]} 19... Qb8
{[%clk 0:02:06.4]} 20. Rc1 {[%clk 0:01:00.7]} 20... d5 {[%clk 0:02:05.9]} 21.
cxd5 {[%clk 0:00:57.4]} 21... Nxd5 {[%clk 0:02:05.6]} 22. Qd1 {[%clk 0:00:51]}
22... Nxc3 {[%clk 0:01:53.7]} 23. Rxc3 {[%clk 0:00:51.9]} 23... Rxc3 {[%clk
0:01:53]} 24. Bxc3 {[%clk 0:00:52.8]} 24... Rd8 {[%clk 0:01:51]} 25. h3 {[%clk
0:00:48.4]} 25... Qa8 {[%clk 0:01:49.4]} 26. Qg4 {[%clk 0:00:43.2]} 26... Bf8
{[%clk 0:01:44.6]} 27. Bf6 {[%clk 0:00:40.5]} 27... Rd5 {[%clk 0:01:30.4]} 28.
e4 {[%clk 0:00:19.7]} 28... Rd7 {[%clk 0:01:14.6]} 29. Bc3 {[%clk 0:00:16.3]}
29... Qc8 {[%clk 0:01:12.3]} 30. Bf1 {[%clk 0:00:15.6]} 30... Rxd2 {[%clk
0:01:07.7]} 31. Bxd2 {[%clk 0:00:16.5]} 31... Qc2 {[%clk 0:01:04.8]} 32. Bxh6
{[%clk 0:00:16.3]} 32... Bxe4 {[%clk 0:01:00.6]} 33. Be3 {[%clk 0:00:12]} 33...
b5 {[%clk 0:00:59.2]} 34. Qf4 {[%clk 0:00:11.2]} 34... Qb1 {[%clk 0:00:56.8]}
35. Bc1 {[%clk 0:00:04.6]} 35... Bd5 {[%clk 0:00:51.8]} 36. Kh2 {[%clk
0:00:02.9]} 36... Qa1 {[%clk 0:00:50.6]} 37. Be2 {[%clk 0:00:02.4]} 37... Qa2
{[%clk 0:00:37.1]} 38. Bf3 {[%clk 0:00:01.9]} 38... Qxf2 {[%clk 0:00:35.6]} 39.
Be3 {[%clk 0:00:02.1]} 39... Qe1 {[%clk 0:00:28.4]} 40. Bxd5 {[%clk 0:00:02]}
40... exd5 {[%clk 0:00:29.2]} 41. Bd4 {[%clk 0:00:02.4]} 41... Qe6 {[%clk
0:00:28.5]} 42. Qf2 {[%clk 0:00:02.3]} 42... Bd6+ {[%clk 0:00:28.4]} 43. Kg1
{[%clk 0:00:02.9]} 43... Qe4 {[%clk 0:00:28.5]} 44. Qd2 {[%clk 0:00:02.9]} 44...
Bf4 {[%clk 0:00:27.7]} 45. Qc3 {[%clk 0:00:03.4]} 45... f6 {[%clk 0:00:25.2]}
46. Kf2 {[%clk 0:00:03.6]} 46... Bg5 {[%clk 0:00:24.4]} 47. g3 {[%clk
0:00:03.5]} 47... Qf5+ {[%clk 0:00:24.3]} 48. Kg2 {[%clk 0:00:03.8]} 48... Qe4+
{[%clk 0:00:24.7]} 49. Kf2 {[%clk 0:00:04.5]} 49... Qh1 {[%clk 0:00:21.7]} 50.
h4 {[%clk 0:00:04.5]} 50... Qh2+ {[%clk 0:00:21.5]} 51. Kf3 {[%clk 0:00:05.1]}
51... Qh1+ {[%clk 0:00:21]} 52. Kg4 {[%clk 0:00:05.5]} 52... Qd1+ {[%clk
0:00:20]} 53. Kf5 {[%clk 0:00:05.5]} 53... Bh6 {[%clk 0:00:17.5]} 54. Ke6 {[%clk
0:00:04.7]} 54... Qe2+ {[%clk 0:00:17.3]} 55. Kxd5 {[%clk 0:00:04.7]} 55... Qe8
{[%clk 0:00:15]} 56. Kd6 {[%clk 0:00:04.5]} 56... Qd8+ {[%clk 0:00:14.8]} 57.
Kc6 {[%clk 0:00:04.9]} 57... Qc8+ {[%clk 0:00:14.5]} 58. Kb6 {[%clk 0:00:05.3]}
58... Qe6+ {[%clk 0:00:13.6]} 59. Qc6 {[%clk 0:00:05.1]} 59... Qb3 {[%clk
0:00:13.8]} 60. Kxa6 {[%clk 0:00:04.4]} 60... Qa4+ {[%clk 0:00:13.3]} 61. Kb6
{[%clk 0:00:04.3]} 61... Bc1 {[%clk 0:00:11.1]} 62. Qxb5 {[%clk 0:00:03.4]}
62... Qxa3 {[%clk 0:00:10.7]} 63. Qd5+ {[%clk 0:00:03.4]} 63... Kh7 {[%clk
0:00:10.7]} 64. Qe4+ {[%clk 0:00:03.4]} 64... Kg8 {[%clk 0:00:10.8]} 65. Bc5
{[%clk 0:00:02.3]} 65... Qxg3 {[%clk 0:00:09.2]} 66. Qe8+ {[%clk 0:00:02.4]}
66... Kh7 {[%clk 0:00:08.5]} 67. Qh5+ {[%clk 0:00:01.8]} 67... Kg8 {[%clk
0:00:08.7]} 68. Qd5+ {[%clk 0:00:02.4]} 68... Kh7 {[%clk 0:00:08.8]} 69. h5
{[%clk 0:00:03]} 69... Bf4 {[%clk 0:00:08.5]} 70. Qf5+ {[%clk 0:00:02.4]} 70...
Kg8 {[%clk 0:00:08.6]} 71. Qd5+ {[%clk 0:00:02.7]} 71... Kh7 {[%clk 0:00:07.9]}
72. b5 {[%clk 0:00:03.4]} 72... Bc7+ {[%clk 0:00:07.2]} 73. Kb7 {[%clk
0:00:03.6]} 73... Bb8 {[%clk 0:00:06.7]} 74. b6 {[%clk 0:00:04]} 74... Bf4
{[%clk 0:00:06.1]} 75. Qf5+ {[%clk 0:00:03.8]} 75... Kg8 {[%clk 0:00:06.1]} 76.
Qd5+ {[%clk 0:00:03.9]} 76... Kh7 {[%clk 0:00:06.4]} 77. Kc8 {[%clk 0:00:03.6]}
77... Qg4+ {[%clk 0:00:04.3]} 78. Kb7 {[%clk 0:00:02.5]} 78... Bg3 {[%clk
0:00:03.4]} 79. Ka7 {[%clk 0:00:02.4]} 79... Qa4+ {[%clk 0:00:03.3]} 80. Kb7
{[%clk 0:00:02.3]} 80... Qg4 {[%clk 0:00:03]} 81. Kc6 {[%clk 0:00:02]} 81...
Qa4+ {[%clk 0:00:03.4]} 82. Kb7 {[%clk 0:00:01.5]} 82... Qg4 {[%clk 0:00:04.1]}
1/2-1/2